[Event "Championnat de France Universitaire 2022"]
[Site "Limoges, France"]
[Date "2022.02.06"]
[Round "9.3"]
[White "Bosc, Gabriel"]
[Black "Valles, Manuel"]
[Result "0-1"]
[TimeControl "15'+5''"]
[WhiteElo "2050"]
[BlackElo "2362"]

1. e4 {[%clk 00:15:08]} {[%emt 00:00:02]} c5 {[%clk 00:15:00]} {[%emt
00:00:10]} 2. Nf3 {[%clk 00:15:11]} {[%emt 00:00:03]} g6 {[%clk 00:15:04]} 3.
d4 {[%clk 00:15:10]} {[%emt 00:00:07]} cxd4 {[%clk 00:15:08]} 4. Nxd4 {[%clk
00:15:14]} Bg7 {[%clk 00:15:02]} {[%emt 00:00:11]} 5. c4 {[%clk 00:14:52]}
{[%emt 00:00:28]} Nc6 {[%clk 00:15:00]} {[%emt 00:00:07]} 6. Be3 {[%clk
00:14:50]} {[%emt 00:00:06]} Nf6 {[%clk 00:14:27]} {[%emt 00:00:37]} 7. Nc3
{[%clk 00:14:54]} {[%emt 00:00:02]} d6 {[%clk 00:14:23]} {[%emt 00:00:08]} 8.
Be2 {[%clk 00:14:48]} {[%emt 00:00:12]} O-O {[%clk 00:14:22]} {[%emt 00:00:05]}
9. O-O {[%clk 00:14:39]} {[%emt 00:00:15]} Bd7 {[%clk 00:14:27]} 10. Nc2 {[%clk
00:14:29]} {[%emt 00:00:14]} Qa5 {[%clk 00:13:38]} {[%emt 00:00:54]} 11. a3
{[%clk 00:13:24]} {[%emt 00:01:11]} Rfc8 {[%clk 00:13:32]} {[%emt 00:00:10]} 12.
b4 {[%clk 00:13:24]} {[%emt 00:00:06]} Qd8 {[%clk 00:13:35]} {[%emt 00:00:01]}
13. f4 {[%clk 00:12:34]} {[%emt 00:00:55]} Ng4 {[%clk 00:10:57]} {[%emt
00:02:43]} 14. Bxg4 {[%clk 00:10:56]} {[%emt 00:01:43]} Bxc3 {[%clk 00:10:33]}
{[%emt 00:00:28]} 15. Rb1 {[%clk 00:10:42]} {[%emt 00:00:19]} Bxg4 {[%clk
00:07:58]} {[%emt 00:02:40]} 16. Qxg4 {[%clk 00:10:46]} {[%emt 00:00:01]} a5
{[%clk 00:08:03]} 17. b5 {[%clk 00:09:13]} {[%emt 00:01:39]} Nb8 {[%clk
00:08:07]} {[%emt 00:00:01]} 18. c5 {[%clk 00:08:54]} {[%emt 00:00:24]} Nd7
{[%clk 00:06:47]} {[%emt 00:01:25]} 19. cxd6 {[%clk 00:08:08]} {[%emt
00:00:51]} Nf6 {[%clk 00:06:50]} 20. Qf3 {[%clk 00:08:01]} {[%emt 00:00:12]}
exd6 {[%clk 00:06:52]} {[%emt 00:00:04]} 21. Kh1 {[%clk 00:01:10]} {[%emt
00:06:56]} Qe8 {[%clk 00:03:24]} {[%emt 00:03:33]} 22. f5 {[%clk 00:00:35]}
{[%emt 00:00:40]} Qxe4 {[%clk 00:03:14]} {[%emt 00:00:14]} 23. fxg6 {[%clk
00:00:20]} {[%emt 00:00:21]} hxg6 {[%clk 00:02:43]} {[%emt 00:00:35]} 24. Bg5
{[%clk 00:00:17]} {[%emt 00:00:08]} Qxf3 {[%clk 00:02:28]} {[%emt 00:00:20]} 25.
Rxf3 {[%clk 00:00:21]} {[%emt 00:00:01]} Ne4 {[%clk 00:02:32]} {[%emt
00:00:01]} 26. Bf4 {[%clk 00:00:13]} {[%emt 00:00:13]} Be5 {[%clk 00:00:47]}
{[%emt 00:01:50]} 27. Bxe5 {[%clk 00:00:07]} {[%emt 00:00:11]} Nd2 {[%clk
00:00:29]} {[%emt 00:00:23]} 28. Rh3 {[%clk 00:00:07]} {[%emt 00:00:05]} dxe5
{[%clk 00:00:30]} {[%emt 00:00:04]} 29. Rb2 {[%clk 00:00:08]} {[%emt 00:00:04]}
Rc4 {[%clk 00:00:15]} {[%emt 00:00:20]} 30. Kg1 {[%clk 00:00:10]} {[%emt
00:00:03]} Rac8 {[%clk 00:00:18]} {[%emt 00:00:02]} 31. Ne3 {[%clk 00:00:07]}
{[%emt 00:00:08]} Rc1+ {[%clk 00:00:19]} {[%emt 00:00:03]} 32. Kf2 {[%clk
00:00:09]} {[%emt 00:00:02]} Ne4+ {[%clk 00:00:21]} {[%emt 00:00:04]} 33. Ke2
{[%clk 00:00:13]} {[%emt 00:00:02]} Nc3+ {[%clk 00:00:08]} {[%emt 00:00:18]} 34.
Kd2 {[%clk 00:00:07]} {[%emt 00:00:10]} Rg1 {[%clk 00:00:08]} {[%emt 00:00:05]}
35. Rc2 {[%clk 00:00:07]} {[%emt 00:00:06]} Ne4+ {[%clk 00:00:11]} {[%emt
00:00:01]} 36. Kd3 {[%clk 00:00:10]} {[%emt 00:00:03]} Rxc2 {[%clk 00:00:12]}
{[%emt 00:00:04]} 37. Kxc2 {[%clk 00:00:13]} {[%emt 00:00:01]} f5 {[%clk
00:00:12]} {[%emt 00:00:05]} 38. Rf3 {[%clk 00:00:09]} {[%emt 00:00:10]} f4
{[%clk 00:00:07]} {[%emt 00:00:10]} 39. Nc4 {[%clk 00:00:08]} {[%emt 00:00:06]}
Rxg2+ {[%clk 00:00:11]} {[%emt 00:00:01]} 40. Kd3 {[%clk 00:00:07]} {[%emt
00:00:06]} Nc5+ {[%clk 00:00:09]} {[%emt 00:00:07]} 41. Kc3 {[%clk 00:00:08]}
{[%emt 00:00:04]} Re2 {[%clk 00:00:10]} {[%emt 00:00:04]} 42. Rh3 {[%clk
00:00:06]} {[%emt 00:00:07]} Kg7 {[%clk 00:00:12]} {[%emt 00:00:03]} 43. Rf3
{[%clk 00:00:06]} {[%emt 00:00:05]} Kf6 {[%clk 00:00:15]} {[%emt 00:00:02]} 44.
Rh3 {[%clk 00:00:10]} e4 {[%clk 00:00:17]} {[%emt 00:00:03]} 45. Kd4 {[%clk
00:00:10]} {[%emt 00:00:06]} Ne6+ {[%clk 00:00:18]} {[%emt 00:00:04]} 46. Kd5
{[%clk 00:00:10]} {[%emt 00:00:05]} f3 {[%clk 00:00:19]} {[%emt 00:00:03]} 47.
Nd6 {[%clk 00:00:06]} {[%emt 00:00:09]} Nf4+ {[%clk 00:00:19]} {[%emt
00:00:05]} 48. Kd4 {[%emt 00:00:05]} Ke5+ 0-1

[Event "Championnat de France Universitaire 2022"]
[Site "Limoges, France"]
[Date "2022.02.06"]
[Round "9.4"]
[White "Gatineau, Yovann"]
[Black "Dalaud, Dorian"]
[Result "1-0"]
[TimeControl "15'+5''"]
[WhiteElo "2384"]
[BlackElo "2275"]

1. d4 {[%clk 00:15:08]} {[%emt 00:00:02]} Nf6 {[%clk 00:15:08]} {[%emt
00:00:02]} 2. Bf4 {[%clk 00:15:12]} {[%emt 00:00:01]} g6 {[%clk 00:15:00]}
{[%emt 00:00:13]} 3. Nc3 {[%clk 00:15:15]} {[%emt 00:00:02]} d5 {[%clk
00:15:02]} {[%emt 00:00:04]} 4. e3 {[%clk 00:15:19]} {[%emt 00:00:01]} Bg7
{[%clk 00:15:00]} {[%emt 00:00:06]} 5. h4 {[%clk 00:15:23]} h5 {[%clk
00:14:56]} {[%emt 00:00:10]} 6. Nf3 {[%clk 00:14:43]} {[%emt 00:00:45]} O-O
{[%clk 00:14:39]} {[%emt 00:00:23]} 7. Ne5 {[%clk 00:14:46]} c5 {[%clk
00:14:29]} {[%emt 00:00:16]} 8. Qd2 {[%clk 00:14:37]} {[%emt 00:00:14]} Nc6
{[%clk 00:13:46]} {[%emt 00:00:49]} 9. O-O-O {[%clk 00:14:32]} {[%emt
00:00:08]} cxd4 {[%clk 00:12:34]} {[%emt 00:01:18]} 10. exd4 {[%clk 00:14:35]}
Bf5 {[%clk 00:12:15]} {[%emt 00:00:24]} 11. f3 {[%clk 00:12:21]} {[%emt
00:02:20]} Qa5 {[%clk 00:12:06]} {[%emt 00:00:14]} 12. Kb1 {[%clk 00:10:25]}
{[%emt 00:02:01]} Rac8 {[%clk 00:12:02]} {[%emt 00:00:08]} 13. Nxc6 {[%clk
00:08:10]} {[%emt 00:02:20]} Rxc6 {[%clk 00:12:06]} 14. Bd3 {[%clk 00:07:44]}
{[%emt 00:00:30]} Bxd3 {[%clk 00:11:38]} {[%emt 00:00:33]} 15. Qxd3 {[%clk
00:07:47]} {[%emt 00:00:02]} Rfc8 {[%clk 00:11:40]} {[%emt 00:00:04]} 16. Bd2
{[%clk 00:07:18]} {[%emt 00:00:34]} Rc4 {[%clk 00:09:13]} {[%emt 00:02:32]} 17.
g4 {[%clk 00:06:40]} {[%emt 00:00:43]} hxg4 {[%clk 00:08:33]} {[%emt 00:00:45]}
18. h5 {[%clk 00:06:29]} {[%emt 00:00:16]} Nxh5 {[%clk 00:07:17]} {[%emt
00:01:21]} 19. fxg4 {[%clk 00:05:59]} {[%emt 00:00:36]} Rxd4 {[%clk 00:06:40]}
{[%emt 00:00:42]} 20. Qf3 {[%clk 00:05:34]} {[%emt 00:00:29]} Nf6 {[%clk
00:04:17]} {[%emt 00:02:29]} 21. g5 {[%clk 00:04:16]} {[%emt 00:01:23]} Ng4
{[%clk 00:02:19]} {[%emt 00:02:03]} 22. Rdf1 {[%clk 00:03:53]} {[%emt
00:00:28]} Ne5 {[%clk 00:02:08]} {[%emt 00:00:16]} 23. Qh3 {[%clk 00:03:54]}
{[%emt 00:00:04]} Rc6 {[%clk 00:01:11]} {[%emt 00:01:02]} 24. Qh7+ {[%clk
00:03:26]} {[%emt 00:00:33]} Kf8 {[%clk 00:01:15]} {[%emt 00:00:02]} 25. Qh8+
{[%clk 00:03:30]} Bxh8 {[%clk 00:00:56]} {[%emt 00:00:24]} 26. Rxh8+ {[%clk
00:03:34]} {[%emt 00:00:01]} Kg7 {[%clk 00:01:00]} {[%emt 00:00:01]} 27. Rfh1
{[%clk 00:03:36]} {[%emt 00:00:02]} Rxd2 {[%clk 00:00:07]} {[%emt 00:00:58]} 28.
R1h7# {[%clk 00:03:40]} {[%emt 00:00:01]} 1-0

[Event "Championnat de France Universitaire 2022"]
[Site "Limoges, France"]
[Date "2022.02.06"]
[Round "9.5"]
[White "Albaric, Etienne"]
[Black "Gemci, Arda"]
[Result "0-1"]
[TimeControl "15'+5''"]
[WhiteElo "2235"]
[BlackElo "1355"]

1. e4 {[%clk 00:15:02]} {[%emt 00:00:07]} c6 {[%clk 00:15:09]} 2. d4 {[%clk
00:15:06]} {[%emt 00:00:01]} d5 {[%clk 00:15:14]} 3. Nd2 {[%clk 00:15:09]}
{[%emt 00:00:03]} dxe4 {[%clk 00:15:15]} {[%emt 00:00:02]} 4. Nxe4 {[%clk
00:15:13]} {[%emt 00:00:01]} Bf5 {[%clk 00:15:19]} {[%emt 00:00:01]} 5. Ng3
{[%clk 00:15:15]} {[%emt 00:00:03]} Bg6 {[%clk 00:15:23]} {[%emt 00:00:01]} 6.
Nh3 {[%clk 00:15:13]} {[%emt 00:00:07]} e5 {[%clk 00:15:25]} {[%emt 00:00:04]}
7. dxe5 {[%clk 00:15:06]} {[%emt 00:00:10]} Qa5+ {[%clk 00:15:29]} {[%emt
00:00:01]} 8. c3 {[%clk 00:15:09]} {[%emt 00:00:02]} Qxe5+ {[%clk 00:15:32]}
{[%emt 00:00:02]} 9. Be2 {[%clk 00:15:12]} {[%emt 00:00:02]} Bc5 {[%clk
00:14:44]} {[%emt 00:00:53]} 10. Nf4 {[%clk 00:13:49]} {[%emt 00:01:29]} Ne7
{[%clk 00:14:33]} {[%emt 00:00:16]} 11. Qb3 {[%clk 00:13:01]} {[%emt 00:00:53]}
Qc7 {[%clk 00:14:00]} {[%emt 00:00:37]} 12. h4 {[%clk 00:12:29]} {[%emt
00:00:37]} h6 {[%clk 00:10:47]} {[%emt 00:03:18]} 13. Nfh5 {[%clk 00:09:47]}
{[%emt 00:02:46]} Rg8 {[%clk 00:09:44]} {[%emt 00:01:08]} 14. Bf4 {[%clk
00:09:26]} {[%emt 00:00:27]} Qb6 {[%clk 00:09:39]} {[%emt 00:00:11]} 15. O-O
{[%clk 00:08:30]} {[%emt 00:01:01]} Qxb3 {[%clk 00:09:15]} {[%emt 00:00:30]} 16.
axb3 {[%clk 00:08:34]} Nd5 {[%clk 00:09:19]} {[%emt 00:00:01]} 17. b4 {[%clk
00:07:51]} {[%emt 00:00:48]} Be7 {[%clk 00:07:46]} {[%emt 00:01:38]} 18. Rfe1
{[%clk 00:06:12]} {[%emt 00:01:43]} Kf8 {[%clk 00:06:23]} {[%emt 00:01:29]} 19.
Bc4 {[%clk 00:05:26]} {[%emt 00:00:51]} Nb6 {[%clk 00:05:48]} {[%emt 00:00:40]}
20. Bb3 {[%clk 00:05:18]} {[%emt 00:00:13]} N8d7 {[%clk 00:05:22]} {[%emt
00:00:31]} 21. Rad1 {[%clk 00:04:12]} {[%emt 00:01:10]} Rh8 {[%clk 00:04:04]}
{[%emt 00:01:23]} 22. Bd6 {[%clk 00:03:48]} {[%emt 00:00:30]} Re8 {[%clk
00:03:38]} {[%emt 00:00:30]} 23. Nxg7 {[%clk 00:02:53]} {[%emt 00:01:00]} Kxg7
{[%emt 00:01:24]} 24. Bxe7 {[%emt 00:00:01]} Nf6 {[%clk 00:02:03]} {[%emt
00:00:20]} 25. c4 {[%clk 00:02:10]} {[%emt 00:00:53]} Nc8 {[%clk 00:01:16]}
{[%emt 00:00:52]} 26. Bc5 {[%clk 00:01:52]} {[%emt 00:00:22]} Rxe1+ {[%clk
00:01:07]} {[%emt 00:00:15]} 27. Rxe1 {[%clk 00:01:54]} {[%emt 00:00:03]} Rd8
{[%clk 00:01:09]} 28. Rd1 {[%clk 00:01:20]} {[%emt 00:00:40]} Rxd1+ {[%clk
00:01:05]} {[%emt 00:00:09]} 29. Bxd1 {[%clk 00:01:25]} {[%emt 00:00:01]} Bd3
{[%clk 00:01:08]} {[%emt 00:00:01]} 30. Bd4 {[%clk 00:01:23]} {[%emt 00:00:06]}
Bg6 {[%clk 00:00:21]} {[%emt 00:00:52]} 31. h5 {[%clk 00:01:06]} {[%emt
00:00:23]} Bd3 {[%clk 00:00:25]} {[%emt 00:00:01]} 32. b3 {[%clk 00:00:47]}
{[%emt 00:00:24]} Ne7 {[%clk 00:00:28]} {[%emt 00:00:01]} 33. f3 {[%clk
00:00:40]} {[%emt 00:00:12]} a6 {[%clk 00:00:29]} {[%emt 00:00:04]} 34. Kf2
{[%clk 00:00:42]} {[%emt 00:00:03]} Neg8 {[%clk 00:00:24]} {[%emt 00:00:10]} 35.
Ke3 {[%clk 00:00:45]} {[%emt 00:00:02]} Bb1 {[%clk 00:00:26]} {[%emt 00:00:03]}
36. Kf4 {[%clk 00:00:30]} {[%emt 00:00:20]} Kf8 {[%clk 00:00:30]} {[%emt
00:00:01]} 37. Ke5 {[%clk 00:00:12]} {[%emt 00:00:24]} Ke7 {[%clk 00:00:23]}
{[%emt 00:00:11]} 38. Bc5+ {[%clk 00:00:16]} {[%emt 00:00:01]} Kd7 {[%clk
00:00:26]} {[%emt 00:00:01]} 39. Bf8 {[%clk 00:00:12]} {[%emt 00:00:10]} Kc7
{[%clk 00:00:25]} {[%emt 00:00:06]} 40. Bg7 {[%clk 00:00:09]} {[%emt 00:00:08]}
Nd7+ {[%clk 00:00:29]} {[%emt 00:00:01]} 41. Kd4 {[%clk 00:00:12]} {[%emt
00:00:01]} b6 {[%clk 00:00:32]} {[%emt 00:00:02]} 42. Nf5 {[%clk 00:00:15]}
{[%emt 00:00:02]} Bxf5 {[%emt 00:00:04]} 43. g4 {[%clk 00:00:19]} Bb1 {[%clk
00:00:37]} {[%emt 00:00:02]} 44. f4 {[%clk 00:00:22]} {[%emt 00:00:02]} Kd6
{[%clk 00:00:32]} {[%emt 00:00:10]} 45. g5 {[%clk 00:00:23]} {[%emt 00:00:04]}
c5+ {[%clk 00:00:34]} {[%emt 00:00:03]} 46. Kc3 {[%clk 00:00:24]} {[%emt
00:00:04]} f6 {[%clk 00:00:26]} {[%emt 00:00:13]} 47. g6 {[%clk 00:00:16]}
{[%emt 00:00:12]} Ke6 {[%clk 00:00:29]} 48. Bf3 {[%clk 00:00:16]} {[%emt
00:00:07]} Kf5 {[%clk 00:00:07]} {[%emt 00:00:27]} 49. Bd5 {[%clk 00:00:16]}
{[%emt 00:00:04]} Ne7 {[%clk 00:00:11]} 50. Bxh6 {[%clk 00:00:12]} {[%emt
00:00:10]} Kg4 {[%clk 00:00:15]} 51. g7 {[%clk 00:00:10]} {[%emt 00:00:08]}
Kxh5 {[%clk 00:00:17]} {[%emt 00:00:03]} 52. g8=Q {[%clk 00:00:09]} {[%emt
00:00:05]} Nxg8 {[%clk 00:00:21]} {[%emt 00:00:01]} 53. Bxg8 {[%clk 00:00:13]}
Kxh6 {[%emt 00:00:04]} 54. Be6 cxb4+ {[%clk 00:00:18]} {[%emt 00:00:10]} 55.
Kxb4 {[%clk 00:00:20]} {[%emt 00:00:01]} Nc5 {[%clk 00:00:22]} 56. Bc8 {[%clk
00:00:23]} {[%emt 00:00:02]} Be4 {[%clk 00:00:24]} {[%emt 00:00:04]} 57. Kc3
{[%clk 00:00:27]} {[%emt 00:00:01]} a5 {[%clk 00:00:27]} {[%emt 00:00:01]} 58.
Bg4 {[%clk 00:00:28]} {[%emt 00:00:05]} f5 {[%clk 00:00:30]} {[%emt 00:00:02]}
59. Be2 {[%clk 00:00:30]} {[%emt 00:00:03]} Kg6 {[%clk 00:00:30]} {[%emt
00:00:05]} 60. b4 {[%clk 00:00:33]} {[%emt 00:00:02]} axb4+ {[%clk 00:00:33]}
{[%emt 00:00:02]} 61. Kxb4 {[%clk 00:00:37]} Bc6 {[%clk 00:00:37]} 62. Bd1
{[%clk 00:00:37]} {[%emt 00:00:06]} Kf6 {[%clk 00:00:40]} {[%emt 00:00:02]} 63.
Bc2 {[%clk 00:00:40]} {[%emt 00:00:01]} Be4 {[%clk 00:00:30]} {[%emt 00:00:14]}
64. Bd1 {[%clk 00:00:45]} Bd3 {[%clk 00:00:26]} {[%emt 00:00:09]} 65. Kb5
{[%clk 00:00:47]} {[%emt 00:00:03]} Ne6 {[%clk 00:00:30]} {[%emt 00:00:01]} 66.
Bf3 {[%clk 00:00:35]} {[%emt 00:00:17]} Nxf4 {[%clk 00:00:32]} {[%emt
00:00:03]} 67. Kxb6 {[%clk 00:00:39]} {[%emt 00:00:01]} Bxc4 {[%emt 00:00:03]}
68. Kc5 Be2 {[%clk 00:00:39]} 69. Bc6 {[%clk 00:00:46]} {[%emt 00:00:02]} Kg5
{[%clk 00:00:43]} 70. Bd7 {[%clk 00:00:49]} {[%emt 00:00:02]} Bd3 {[%clk
00:00:45]} {[%emt 00:00:03]} 71. Kd4 {[%clk 00:00:53]} {[%emt 00:00:01]} Be4
{[%clk 00:00:48]} {[%emt 00:00:02]} 72. Ke3 {[%clk 00:00:56]} {[%emt 00:00:02]}
Kg4 {[%clk 00:00:50]} {[%emt 00:00:02]} 73. Bc8 {[%clk 00:00:58]} {[%emt
00:00:04]} Nd5+ {[%clk 00:00:53]} {[%emt 00:00:02]} 74. Kf2 {[%clk 00:01:02]}
{[%emt 00:00:01]} Kf4 {[%clk 00:00:53]} {[%emt 00:00:05]} 75. Bd7 {[%clk
00:01:05]} {[%emt 00:00:02]} Ne3 {[%clk 00:00:57]} {[%emt 00:00:01]} 76. Bc8
{[%clk 00:01:09]} {[%emt 00:00:02]} Ng4+ {[%clk 00:01:00]} {[%emt 00:00:01]} 77.
Ke1 {[%clk 00:01:12]} {[%emt 00:00:02]} Nh2 {[%clk 00:01:00]} {[%emt 00:00:05]}
78. Kf2 {[%clk 00:01:16]} {[%emt 00:00:01]} Nf3 {[%clk 00:01:04]} {[%emt
00:00:01]} 79. Bd7 {[%clk 00:01:18]} {[%emt 00:00:03]} Ne5 {[%clk 00:01:04]}
{[%emt 00:00:05]} 80. Bc8 {[%clk 00:01:22]} {[%emt 00:00:02]} Nd3+ {[%clk
00:01:08]} 81. Ke2 {[%clk 00:01:25]} {[%emt 00:00:02]} Ke5 {[%clk 00:01:05]}
{[%emt 00:00:08]} 82. Bd7 {[%clk 00:01:26]} {[%emt 00:00:04]} f4 {[%clk
00:01:09]} 83. Bg4 {[%clk 00:01:27]} {[%emt 00:00:04]} Nc1+ {[%clk 00:01:09]}
{[%emt 00:00:05]} 84. Kd1 {[%clk 00:01:28]} {[%emt 00:00:04]} Nb3 {[%clk
00:01:09]} {[%emt 00:00:06]} 85. Ke2 {[%clk 00:01:29]} {[%emt 00:00:03]} Kd4
{[%clk 00:01:09]} {[%emt 00:00:05]} 86. Kf2 {[%clk 00:01:32]} {[%emt 00:00:02]}
Nc1 {[%emt 00:00:05]} 87. Bh5 {[%clk 00:01:35]} {[%emt 00:00:01]} Kc3 {[%clk
00:01:11]} {[%emt 00:00:05]} 88. Bg4 {[%clk 00:01:37]} {[%emt 00:00:02]} Kd2
{[%clk 00:01:16]} {[%emt 00:00:01]} 89. Bh5 {[%clk 00:01:41]} {[%emt 00:00:01]}
Nd3 {[%clk 00:01:20]} {[%emt 00:00:01]} 90. Kf1 {[%clk 00:01:40]} {[%emt
00:00:06]} Ke3 {[%clk 00:01:19]} {[%emt 00:00:06]} 91. Bg4 {[%clk 00:01:44]}
{[%emt 00:00:01]} Bf3 {[%clk 00:01:23]} {[%emt 00:00:01]} 92. Bf5 {[%clk
00:01:46]} {[%emt 00:00:02]} Be2+ {[%clk 00:01:25]} {[%emt 00:00:03]} 93. Kg1
{[%clk 00:01:47]} {[%emt 00:00:04]} f3 {[%clk 00:01:30]} {[%emt 00:00:01]} 94.
Bh3 {[%clk 00:01:47]} {[%emt 00:00:05]} Nf4 {[%clk 00:01:27]} {[%emt 00:00:07]}
95. Bf1 {[%emt 00:00:08]} 0-1